Workbook

Sheet PLANITILLA
A2: NO. PARTIDA | B2: DESCRIPCION PARTIDA | C2: UD | D2: CANT. (A) | E2: PRECIO UNITARIO RD$ (B) | F2: TOTAL POR PARTIDA RD$ (AXB)
A3: BAÑOS ALA SUR
B4: PASILLO ENTRADA
A5: 1 | B5: PRELIMINARES
A6: 1.1 | B6: Demolición de pisos en baño | C6: M2 | D6: =1.5*1.51+1.33*0.7 -> 3.196
A7: 1.2 | B7: Desmonte de luminaria existente | C7: UND | D7: 1
A8: 2 | B8: PISOS Y REVESTIMIENTO
A9: =+A8+0.01 -> 2.01 | B9: Suministro y colocación de pisos en porcelanato para baño | C9: M2 | D9: =1.5*1.51+1.33*0.7 -> 3.196
A10: 3 | B10: PLAFONES
A11: =+A10+0.01 -> 3.01 | B11: Suministro y colocación de plafones 2x2, Tipo Concord. Incluye estructura | C11: M2 | D11: =1.5*1.51+1.33*0.7 -> 3.196
A12: 4 | B12: LUMINARIAS
A13: =+A12+0.01 -> 4.01 | B13: Suministro e instalación de Panel led 2x2 40W 6000k | C13: UND | D13: 2
A14: 5 | B14: MISCELANEOS
A15: =+A14+0.01 -> 5.01 | B15: Aplicación de pintura BLANCA SEMI GLOSS, 2 manos | C15: M2 | D15: =+(2.84+1.51+1+0.6)*1.98 -> 11.781
B16: BAÑO A - HOMBRES
A17: 1 | B17: PRELIMINARES
A18: =+A17+0.01 -> 1.01 | B18: Desmonte de aparatos sanitarios. | C18: UND | D18: 2
A19: 1.02 | B19: Desmonte de accesorios de baño y espejo. | C19: UND | D19: 6
A20: 1.03 | B20: Demolición de pisos en baño. | C20: M2 | D20: =0.9*2.81 -> 2.529
A21: 1.04 | B21: Demolición de cerámica de baño. | C21: M2 | D21: =+(0.9+2.81)*2*1.3-(0.63*1.3) -> 8.827
A22: 1.05 | B22: Desmonte de ventana existente. | C22: UND | D22: 1
A23: 1.06 | B23: Desmonte de luminaria existente. | C23: UND | D23: 1
A24: 2 | B24: PISOS Y REVESTIMIENTO
A25: =+A24+0.01 -> 2.01 | B25: Suministro y colocación de pisos en porcelanato para baño. | C25: M2 | D25: =+D20 -> 2.529
A26: 2.02 | B26: Suministro y colocación de revestimiento en porcelanato para baño. | C26: M2 | D26: =+(0.9+2.81)*2*2.5-(0.63*1.8) -> 17.416
A27: 3 | B27: INSTALACIONES SANITARIAS (APARATOS Y ACCESORIOS)
A28: 3.01 | B28: Suministro e instalación de inodoro fluxómetro, cerámica porcelanizada color blanco. Taza alargada, incluye asiento. Ver referencia. | C28: UND | D28: 1
A29: 3.02 | B29: Suministro e instalación de lavamanos de tope, en cerámica color blanca. Incluye llave monomando. | C29: UND | D29: 1
A30: 3.03 | B30: Suministro e instalación de dispensador de jabón líquido. | C30: UND | D30: 1
A31: 3.04 | B31: Suministro e instalación de dispensador de Gel Antibacterial. | C31: UND | D31: 1
A32: 3.05 | B32: Suministro e instalación de Portarollos Papel Sanitario. | C32: UND | D32: 1
A33: 3.06 | B33: Suministro e instalación de Dispensador Papel Toalla. | C33: UND | D33: 1
A34: 3.07 | B34: Suministro e instalación de Espejo cuadrado (0.50x0.70)m | C34: UND | D34: 1
A35: 3.08 | B35: Suministro de zafacón con pedal en acero inoxidable. | C35: UND | D35: 1
A36: 4 | B36: PLAFONES
A37: =+A36+0.01 -> 4.01 | B37: Suministro y colocación de plafones 2x2, Tipo Concord. Incluye estructura. | C37: M2 | D37: =+D25 -> 2.529
A38: 5 | B38: LUMINARIAS
A39: =+A38+0.01 -> 5.01 | B39: Suministro e instalación de Panel led 8'', 18W, 4000K. | C39: UND | D39: 3
A40: =+A39+0.01 -> 5.02 | B40: Acondicionamiento alimentación electrica | C40: PA | D40: 1
A41: 6 | B41: MISCELANEOS
A42: =+A41+0.01 -> 6.01 | B42: Suministro y colocación de ventana corrediza 0.60m x 0.50m (Cristal corrugado ahumado) | C42: UND | D42: 1
A43: =+A42+0.01 -> 6.02 | B43: Confección e instalación de mueble de baño en Madera Roble Natural. | C43: UND | D43: 1
B44: BAÑO B - MUJERES
A45: 1 | B45: PRELIMINARES
A46: =+A45+0.01 -> 1.01 | B46: Desmonte de aparatos sanitarios. | C46: UND | D46: 2
A47: 1.02 | B47: Desmonte de accesorios de baño y espejo. | C47: UND | D47: 6
A48: 1.03 | B48: Demolición de pisos en baño. | C48: M2 | D48: =1.9*1.45*1.05 -> 2.89275
A49: 1.04 | B49: Demolición de cerámica de baño. | C49: M2 | D49: =+(1.9+2.45)*2*1.6 -> 13.92
A50: 1.05 | B50: Desmonte de ventana existente. | C50: UND | D50: 1
A51: 1.06 | B51: Desmonte de luminaria existente. | C51: UND | D51: 1
A52: 2 | B52: PISOS Y REVESTIMIENTO
A53: =+A52+0.01 -> 2.01 | B53: Suministro y colocación de pisos en porcelanato blanco para baño. | C53: M2 | D53: =+D48 -> 2.89275
A54: 2.02 | B54: Suministro y colocación de revestimiento en porcelanato blanco para baño. | C54: M2 | D54: =+(1.9+2.45)*2*1.98-(0.6*1.98) -> 16.038
A55: 3 | B55: INSTALACIONES SANITARIAS (APARATOS Y ACCESORIOS)
A56: =+A55+0.01 -> 3.01 | B56: Suministro e instalación de inodoro fluxómetro, cerámica porcelanizada color blanco. Taza alargada, incluye asiento. Ver referencia. | C56: UND | D56: 1
A57: 3.02 | B57: Suministro e instalación de lavamanos de tope, en cerámica color blanca. Incluye llave monomando. | C57: UND | D57: 1
A58: 3.03 | B58: Suministro e instalación de dispensador de jabón líquido. | C58: UND | D58: 1
A59: 3.04 | B59: Suministro e instalación de dispensador de Gel Antibacterial. | C59: UND | D59: 1
A60: 3.05 | B60: Suministro e instalación de Portarollos Papel Sanitario. | C60: UND | D60: 1
A61: 3.06 | B61: Suministro e instalación de Dispensador Papel Toalla. | C61: UND | D61: 1
A62: 3.07 | B62: Suministro e instalación de Espejo cuadrado (0.50x0.70)m | C62: UND | D62: 1
A63: 3.08 | B63: Suministro de zafacón con pedal en acero inoxidable. | C63: UND | D63: 1
A64: 4 | B64: LUMINARIAS
A65: =+A64+0.01 -> 4.01 | B65: Suministro e instalación de Panel led 8'', 18W, 4000K. | C65: UND | D65: 4
A66: =+A65+0.01 -> 4.02 | B66: Acondicionamiento alimentación electrica | C66: PA | D66: 1
A67: 5 | B67: MISCELANEOS
A68: =+A67+0.01 -> 5.01 | B68: Suministro y colocación de ventana corrediza 0.60m x 0.50m. Cristal corrugado ahumado. | C68: UND | D68: 1
A69: =+A68+0.01 -> 5.02 | B69: Confección e instalación de mueble de baño en Madera Roble Natural. | C69: UND | D69: 1
B70: BAÑO C - HOMBRES
A71: 1 | B71: PRELIMINARES
A72: =+A71+0.01 -> 1.01 | B72: Desmonte de aparatos sanitarios. | C72: UND | D72: 2
A73: 1.02 | B73: Desmonte de accesorios de baño y espejo. | C73: UND | D73: 6
A74: 1.03 | B74: Demolición de pisos en baño. | C74: M2 | D74: =1.33*1.79*1.05 -> 2.499735
A75: 1.04 | B75: Demolición de cerámica de baño. | C75: M2 | D75: =+(1.79+1.33)*2*2.1-(0.7*2.1) -> 11.634
A76: 1.05 | B76: Desmonte de plafon existente. | C76: M2 | D76: =+D74 -> 2.499735
A77: 1.06 | B77: Desmonte de luminaria existente. | C77: UND | D77: 1
A78: 2 | B78: PISOS Y REVESTIMIENTO
A79: =+A78+0.01 -> 2.01 | B79: Suministro y colocación de pisos en porcelanato blanco para baño. | C79: M2 | D79: =+D74 -> 2.499735
A80: 2.02 | B80: Suministro y colocación de revestimiento en porcelanato blanco para baño. | C80: M2 | D80: =+(1.79+1.33)*2*2.7-(0.7*2.1) -> 15.378
A81: 3 | B81: INSTALACIONES SANITARIAS (APARATOS Y ACCESORIOS)
A82: =+A81+0.01 -> 3.01 | B82: Suministro e instalación de inodoro fluxómetro, cerámica porcelanizada color blanco. Taza alargada, incluye asiento. Ver referencia. | C82: UND | D82: 1
A83: 3.02 | B83: Suministro e instalación de lavamanos de tope, en cerámica color blanca. Incluye llave monomando. | C83: UND | D83: 1
A84: 3.03 | B84: Suministro e instalación de dispensador de jabón líquido. | C84: UND | D84: 1
A85: 3.04 | B85: Suministro e instalación de dispensador de Gel Antibacterial. | C85: UND | D85: 1
A86: 3.05 | B86: Suministro e instalación de Portarollos Papel Sanitario. | C86: UND | D86: 1
A87: 3.06 | B87: Suministro e instalación de Dispensador Papel Toalla. | C87: UND | D87: 1
A88: 3.07 | B88: Suministro e instalación de Espejo cuadrado (0.50x0.70)m | C88: UND | D88: 1
A89: 3.08 | B89: Suministro de zafacón con pedal en acero inoxidable. | C89: UND | D89: 1
A90: 4 | B90: PLAFONES
A91: =+A90+0.01 -> 4.01 | B91: Suministro y colocación de plafones 2x2, Tipo Concord. Incluye estructura. | C91: M2 | D91: =+D79 -> 2.499735
A92: 5 | B92: LUMINARIAS
A93: =+A92+0.01 -> 5.01 | B93: Suministro e instalación de Panel led 8'', 18W, 4000K. | C93: UND | D93: 4
A94: =+A93+0.01 -> 5.02 | B94: Acondicionamiento alimentación electrica | C94: PA | D94: 1
A95: 6 | B95: MISCELANEOS
A96: =+A95+0.01 -> 6.01 | B96: Confección e instalación de mueble de baño en Madera Roble Natural. | C96: UND | D96: 1
B97: BAÑO D - MUJERES
A98: 1 | B98: PRELIMINARES
A99: =+A98+0.01 -> 1.01 | B99: Desmonte de aparatos sanitarios. | C99: UND | D99: 2
A100: 1.02 | B100: Desmonte de accesorios de baño y espejo. | C100: UND | D100: 6
A101: 1.03 | B101: Demolición de pisos en baño. | C101: M2 | D101: =1.33*1.79 -> 2.3807
A102: 1.04 | B102: Demolición de cerámica de baño. | C102: M2 | D102: =+(1.79+1.33)*2*2.1+0.65*2.1-(0.7*2.1) -> 12.999
A103: 1.05 | B103: Desmonte de plafon existente. | C103: M2 | D103: =+D101 -> 2.3807
A104: 1.06 | B104: Desmonte de luminaria existente. | C104: UND | D104: 1
A105: 2 | B105: PISOS Y REVESTIMIENTO
A106: =+A105+0.01 -> 2.01 | B106: Suministro y colocación de pisos en porcelanato para baño. | C106: M2 | D106: =+D101 -> 2.3807
A107: 2.02 | B107: Suministro y colocación de revestimiento en porcelanato para baño. | C107: M2 | D107: =+(1.79+1.33)*2*2.7+0.65*2.7-(0.7*2.1) -> 17.133
A108: 3 | B108: INSTALACIONES SANITARIAS (APARATOS Y ACCESORIOS)
A109: =+A108+0.01 -> 3.01 | B109: Suministro e instalación de inodoro fluxómetro, cerámica porcelanizada color blanco. Taza alargada, incluye asiento. Ver referencia. | C109: UND | D109: 1
A110: 3.02 | B110: Suministro e instalación de lavamanos de tope, en cerámica color blanca. Incluye llave monomando. | C110: UND | D110: 1
A111: 3.03 | B111: Suministro e instalación de dispensador de jabón líquido. | C111: UND | D111: 1
A112: 3.04 | B112: Suministro e instalación de dispensador de Gel Antibacterial. | C112: UND | D112: 1
A113: 3.05 | B113: Suministro e instalación de Portarollos Papel Sanitario. | C113: UND | D113: 1
A114: 3.06 | B114: Suministro e instalación de Dispensador Papel Toalla. | C114: UND | D114: 1
A115: 3.07 | B115: Suministro e instalación de Espejo cuadrado (0.50x0.70)m | C115: UND | D115: 1
A116: 3.08 | B116: Suministro de zafacón con pedal en acero inoxidable. | C116: UND | D116: 1
A117: 4 | B117: PLAFONES
A118: =+A117+0.01 -> 4.01 | B118: Suministro y colocación de plafones 2x2, Tipo Concord. Incluye estructura. | C118: M2 | D118: =+D106 -> 2.3807
A119: 5 | B119: LUMINARIAS
A120: =+A119+0.01 -> 5.01 | B120: Suministro e instalación de Panel led 8'', 18W, 4000K. | C120: UND | D120: 4
A121: =+A120+0.01 -> 5.02 | B121: Acondicionamiento alimentación electrica. | C121: PA | D121: 1
A122: 6 | B122: MISCELANEOS
A123: =+A122+0.01 -> 6.01 | B123: Confección e instalación de mueble de baño en Madera Roble Natural. | C123: UND | D123: 1
A124: BAÑOS ALA NORTE
B125: BAÑO E - HOMBRES
A126: 1 | B126: PRELIMINARES
A127: =+A126+0.01 -> 1.01 | B127: Desmonte de aparatos sanitarios. | C127: UND | D127: 2
A128: 1.02 | B128: Desmonte de accesorios de baño y espejo. | C128: UND | D128: 6
A129: 1.03 | B129: Demolición de pisos en baño. | C129: M2 | D129: =1.79*1.4 -> 2.506
A130: 1.04 | B130: Demolición de cerámica de baño. | C130: M2 | D130: =+(1.79+1.33)*2*2.1-(0.7*2.1) -> 11.634
A131: 1.05 | B131: Desmonte de plafon existente. | C131: M2 | D131: =+D129 -> 2.506
A132: 1.06 | B132: Desmonte de luminaria existente. | C132: UND | D132: 1
A133: 2 | B133: PISOS Y REVESTIMIENTO
A134: =+A133+0.01 -> 2.01 | B134: Suministro y colocación de pisos en porcelanato blanco para baño. | C134: M2 | D134: =+D129 -> 2.506
A135: 2.02 | B135: Suministro y colocación de revestimiento en porcelanato blanco para baño. | C135: M2 | D135: =+(1.79+1.4)*2*2.75-(0.7*2.1) -> 16.075
A136: 3 | B136: INSTALACIONES SANITARIAS (APARATOS Y ACCESORIOS)
A137: =+A136+0.01 -> 3.01 | B137: Suministro e instalación de inodoro fluxómetro, cerámica porcelanizada color blanco. Taza alargada, incluye asiento. Ver referencia. | C137: UND | D137: 1
A138: 3.02 | B138: Suministro e instalación de lavamanos de tope, en cerámica color blanca. Incluye llave monomando. | C138: UND | D138: 1
A139: 3.03 | B139: Suministro e instalación de dispensador de jabón líquido. | C139: UND | D139: 1
A140: 3.04 | B140: Suministro e instalación de dispensador de Gel Antibacterial. | C140: UND | D140: 1
A141: 3.05 | B141: Suministro e instalación de Portarollos Papel Sanitario. | C141: UND | D141: 1
A142: 3.06 | B142: Suministro e instalación de Dispensador Papel Toalla. | C142: UND | D142: 1
A143: 3.07 | B143: Suministro e instalación de Espejo cuadrado (0.50x0.70)m | C143: UND | D143: 1
A144: 3.08 | B144: Suministro de zafacón con pedal en acero inoxidable. | C144: UND | D144: 1
A145: 4 | B145: PLAFONES
A146: =+A145+0.01 -> 4.01 | B146: Suministro y colocación de plafones 2x2, Tipo Concord. Incluye estructura. | C146: M2 | D146: =+D134 -> 2.506
A147: 5 | B147: LUMINARIAS
A148: =+A147+0.01 -> 5.01 | B148: Suministro e instalación de Panel led 8'', 18W, 4000K. | C148: UND | D148: 4
A149: =+A148+0.01 -> 5.02 | B149: Acondicionamiento alimentación electrica. | C149: PA | D149: 1
A150: 6 | B150: MISCELANEOS
A151: =+A150+0.01 -> 6.01 | B151: Confección e instalación de mueble de baño en Madera Roble Natural. | C151: UND | D151: 1
B152: BAÑO F - MUJERES
A153: 1 | B153: PRELIMINARES
A154: =+A153+0.01 -> 1.01 | B154: Desmonte de aparatos sanitarios. | C154: UND | D154: 2
A155: 1.02 | B155: Desmonte de accesorios de baño y espejo. | C155: UND | D155: 6
A156: 1.03 | B156: Demolición de pisos en baño. | C156: M2 | D156: =1.72*1.24 -> 2.1328
A157: 1.04 | B157: Demolición de cerámica de baño. | C157: M2 | D157: =+(1.24+1.79)*2*2.1-(0.7*2.1) -> 11.256
A158: 1.05 | B158: Desmonte de plafon existente. | C158: M2 | D158: =+D156 -> 2.1328
A159: 1.06 | B159: Desmonte de luminaria existente. | C159: UND | D159: 1
A160: 2 | B160: PISOS Y REVESTIMIENTO
A161: =+A160+0.01 -> 2.01 | B161: Suministro y colocación de pisos en porcelanato para baño. | C161: M2 | D161: =+D156 -> 2.1328
A162: 2.02 | B162: Suministro y colocación de revestimiento en porcelanato para baño. | C162: M2 | D162: =+(1.79+1.4)*2*2.76-(0.7*2.1) -> 16.1388
A163: 3 | B163: INSTALACIONES SANITARIAS (APARATOS Y ACCESORIOS)
A164: =+A163+0.01 -> 3.01 | B164: Suministro e instalación de inodoro fluxómetro, cerámica porcelanizada color blanco. Taza alargada, incluye asiento. Ver referencia. | C164: UND | D164: 1
A165: 3.02 | B165: Suministro e instalación de lavamanos de tope, en cerámica color blanca. Incluye llave monomando. | C165: UND | D165: 1
A166: 3.03 | B166: Suministro e instalación de dispensador de jabón líquido. | C166: UND | D166: 1
A167: 3.04 | B167: Suministro e instalación de dispensador de Gel Antibacterial. | C167: UND | D167: 1
A168: 3.05 | B168: Suministro e instalación de Portarollos Papel Sanitario. | C168: UND | D168: 1
A169: 3.06 | B169: Suministro e instalación de Dispensador Papel Toalla. | C169: UND | D169: 1
A170: 3.07 | B170: Suministro e instalación de Espejo cuadrado. | C170: UND | D170: 1
A171: 3.08 | B171: Suministro de zafacón con pedal en acero inoxidable. | C171: UND | D171: 1
A172: 4 | B172: PLAFONES
A173: =+A172+0.01 -> 4.01 | B173: Suministro y colocación de plafones 2x2, Tipo Concord. Incluye estructura. | C173: M2 | D173: =+D161 -> 2.1328
A174: 5 | B174: LUMINARIAS
A175: =+A174+0.01 -> 5.01 | B175: Suministro e instalación de Panel led 8'', 18W, 4000K. | C175: UND | D175: 4
A176: =+A175+0.01 -> 5.02 | B176: Acondicionamiento alimentación electrica. | C176: PA | D176: 1
A177: 6 | B177: MISCELANEOS
A178: =+A177+0.01 -> 6.01 | B178: Confección e instalación de mueble de baño en Madera Roble Natural. | C178: UND | D178: 1
A180: TOTAL DE COSTOS DIRECTOS (RD$)
B182: GASTOS INDIRECTOS
B183: DIRECCION TECNICA | C183: % | D183: 0.1
B184: TRANSPORTE | C184: % | D184: 0.025
B185: GASTOS ADMINISTRATIVOS | C185: % | D185: 0.03
B186: SEGUROS Y FIANZAS | C186: % | D186: 0.045
B187: LEY 686: | C187: % | D187: 0.01
B188: IMPREVISTOS | C188: % | D188: 0.05
B189: CODIA | C189: % | D189: 0.001
A190: TOTAL DE COSTOS INDIRECTOS (RD$)
A192: TOTAL GENERAL PRESUPUESTADO (RD$)
